[Event "Live Chess"]
[Site "Chess.com"]
[Date "2023.05.21"]
[Round "-"]
[White "LiamClery2020"]
[Black "hturner40"]
[Result "0-1"]
[WhiteElo "2015"]
[BlackElo "1798"]
[TimeControl "300"]
[EndTime "2:13:53 PDT"]
[Termination "hturner40 won by resignation"]

1. e4 {[%clk 0:04:59.5]} 1... Nc6 {[%clk 0:04:55.5]} 2. Nc3 {[%clk 0:04:57.5]}
2... e5 {[%clk 0:04:54.3]} 3. Bc4 {[%clk 0:04:55.6]} 3... Nf6 {[%clk 0:04:51]}
4. d3 {[%clk 0:04:54.8]} 4... Na5 {[%clk 0:04:44.5]} 5. Bb3 {[%clk 0:04:53.5]}
5... Nxb3 {[%clk 0:04:38.3]} 6. axb3 {[%clk 0:04:53.4]} 6... Bb4 {[%clk
0:04:36.6]} 7. Nf3 {[%clk 0:04:51.8]} 7... d5 {[%clk 0:04:25.2]} 8. O-O {[%clk
0:04:47]} 8... Bxc3 {[%clk 0:04:18.4]} 9. bxc3 {[%clk 0:04:44.8]} 9... dxe4
{[%clk 0:04:16.8]} 10. Nxe5 {[%clk 0:04:43.8]} 10... exd3 {[%clk 0:04:15]} 11.
cxd3 {[%clk 0:04:42.1]} 11... O-O {[%clk 0:04:12.6]} 12. Bg5 {[%clk 0:04:40.8]}
12... Qd6 {[%clk 0:04:04.7]} 13. d4 {[%clk 0:04:39.4]} 13... Ne4 {[%clk
0:03:58.2]} 14. Bf4 {[%clk 0:04:32.8]} 14... Nxc3 {[%clk 0:03:41.2]} 15. Qf3
{[%clk 0:04:17]} 15... Nd5 {[%clk 0:03:36.1]} 16. Bg3 {[%clk 0:04:15.2]} 16...
c6 {[%clk 0:02:25]} 17. Rfe1 {[%clk 0:04:09.5]} 17... Qf6 {[%clk 0:02:15.5]} 18.
Qd3 {[%clk 0:04:03.1]} 18... Bf5 {[%clk 0:02:12.4]} 19. Qf3 {[%clk 0:03:58.8]}
19... Be6 {[%clk 0:02:05]} 20. Qh5 {[%clk 0:03:49.8]} 20... g6 {[%clk
0:01:56.5]} 21. Qh6 {[%clk 0:03:47.1]} 21... Qg7 {[%clk 0:01:55.4]} 22. Qd2
{[%clk 0:03:43.3]} 22... Rfd8 {[%clk 0:01:50.9]} 23. Ng4 {[%clk 0:03:38.7]}
23... Bxg4 {[%clk 0:01:46.9]} 24. Be5 {[%clk 0:03:37.9]} 24... f6 {[%clk
0:01:39]} 25. Bg3 {[%clk 0:03:36.5]} 25... Qd7 {[%clk 0:01:18]} 26. f3 {[%clk
0:03:34.8]} 26... Be6 {[%clk 0:01:14.5]} 27. Re2 {[%clk 0:03:32.4]} 27... Re8
{[%clk 0:01:10.4]} 28. Rf2 {[%clk 0:03:31.2]} 28... Bf7 {[%clk 0:01:07.9]} 29.
f4 {[%clk 0:03:29.6]} 29... Ne3 {[%clk 0:01:03.1]} 30. Re1 {[%clk 0:03:25]}
30... Ng4 {[%clk 0:00:51.7]} 31. Rfe2 {[%clk 0:03:24]} 31... Rxe2 {[%clk
0:00:48.3]} 32. Rxe2 {[%clk 0:03:23.9]} 32... Re8 {[%clk 0:00:45.4]} 33. Rxe8+
{[%clk 0:03:19.3]} 33... Qxe8 {[%clk 0:00:43.9]} 34. h3 {[%clk 0:03:19]} 34...
Qe3+ {[%clk 0:00:42.1]} 35. Qxe3 {[%clk 0:03:14.3]} 35... Nxe3 {[%clk
0:00:41.1]} 36. b4 {[%clk 0:03:14.2]} 36... Nd5 {[%clk 0:00:38.6]} 37. b5 {[%clk
0:03:12]} 37... cxb5 {[%clk 0:00:37.1]} 38. Kf2 {[%clk 0:03:11.9]} 38... b4
{[%clk 0:00:36.2]} 39. Ke1 {[%clk 0:03:11.5]} 39... a5 {[%clk 0:00:35.4]} 40.
Kd2 {[%clk 0:03:10.9]} 40... a4 {[%clk 0:00:34.6]} 41. Kc2 {[%clk 0:03:10.4]}
41... a3 {[%clk 0:00:30.3]} 42. Kb1 {[%clk 0:03:08.7]} 42... b3 {[%clk
0:00:28.8]} 43. Ka1 {[%clk 0:03:08.6]} 43... b2+ {[%clk 0:00:25.8]} 44. Ka2
{[%clk 0:03:08.1]} 44... Nc3+ {[%clk 0:00:24.5]} 0-1

[Event "Live Chess"]
[Site "Chess.com"]
[Date "2023.05.21"]
[Round "-"]
[White "Tiltador"]
[Black "Brooms1989"]
[Result "0-1"]
[WhiteElo "845"]
[BlackElo "1109"]
[TimeControl "300"]
[EndTime "2:14:00 PDT"]
[Termination "Brooms1989 won by resignation"]

1. e4 {[%clk 0:04:56.3]} 1... e5 {[%clk 0:04:58.5]} 2. Nf3 {[%clk 0:04:54.4]}
2... Nc6 {[%clk 0:04:57.4]} 3. Bb5 {[%clk 0:04:52.9]} 3... a6 {[%clk 0:04:56.2]}
4. Bxc6 {[%clk 0:04:51.8]} 4... dxc6 {[%clk 0:04:55.5]} 5. O-O {[%clk
0:04:50.5]} 5... Bd6 {[%clk 0:04:53.6]} 6. d3 {[%clk 0:04:49.4]} 6... h6 {[%clk
0:04:43.2]} 7. Nc3 {[%clk 0:04:48]} 7... Nf6 {[%clk 0:04:42]} 8. a3 {[%clk
0:04:41.1]} 8... O-O {[%clk 0:04:40.4]} 9. b4 {[%clk 0:04:39.8]} 9... Bg4 {[%clk
0:04:29.6]} 10. h3 {[%clk 0:04:30.8]} 10... Bh5 {[%clk 0:04:28.3]} 11. Qe1
{[%clk 0:04:20]} 11... Bxf3 {[%clk 0:04:25]} 12. gxf3 {[%clk 0:04:18.3]} 12...
Qd7 {[%clk 0:04:23.1]} 13. Qe3 {[%clk 0:04:13.2]} 13... Qxh3 {[%clk 0:04:20.7]}
14. f4 {[%clk 0:04:05.7]} 14... Qg4+ {[%clk 0:04:02.9]} 15. Kh1 {[%clk
0:03:54.9]} 15... Qh4+ {[%clk 0:04:00.1]} 16. Kg1 {[%clk 0:03:50.1]} 16... Ng4
{[%clk 0:03:58.8]} 17. Qg3 {[%clk 0:03:41.2]} 17... Qxg3+ {[%clk 0:03:49.1]} 18.
fxg3 {[%clk 0:03:39.2]} 18... exf4 {[%clk 0:03:47.5]} 19. gxf4 {[%clk
0:03:36.1]} 19... f5 {[%clk 0:03:42.8]} 20. e5 {[%clk 0:03:32.9]} 20... Be7
{[%clk 0:03:40.1]} 21. Na4 {[%clk 0:03:19.6]} 21... b6 {[%clk 0:03:36.7]} 22.
Nb2 {[%clk 0:03:08.3]} 22... Rad8 {[%clk 0:03:31.3]} 23. Nd1 {[%clk 0:03:03.1]}
23... c5 {[%clk 0:03:28.8]} 24. Nf2 {[%clk 0:03:00.2]} 24... Nxf2 {[%clk
0:03:26.7]} 25. Rxf2 {[%clk 0:02:59.1]} 25... cxb4 {[%clk 0:03:26.3]} 26. axb4
{[%clk 0:02:56.5]} 26... Bxb4 {[%clk 0:03:25]} 27. Rxa6 {[%clk 0:02:47.8]} 27...
Bc5 {[%clk 0:03:23.3]} 28. Ra7 {[%clk 0:02:42.4]} 28... Rc8 {[%clk 0:03:17.5]}
29. Kg2 {[%clk 0:02:29.5]} 29... Bxf2 {[%clk 0:03:15.8]} 30. Kxf2 {[%clk
0:02:28.1]} 30... Rf7 {[%clk 0:03:06.7]} 31. Kf3 {[%clk 0:02:21.2]} 31... c5
{[%clk 0:03:05.1]} 32. Ra6 {[%clk 0:02:16.2]} 32... Rb7 {[%clk 0:03:00.6]} 33.
c4 {[%clk 0:02:05.3]} 33... Rc6 {[%clk 0:02:51.6]} 34. Kg3 {[%clk 0:01:55.4]}
34... Rg6+ {[%clk 0:02:50]} 35. Kf3 {[%clk 0:01:49.7]} 35... h5 {[%clk
0:02:47.5]} 36. Bb2 {[%clk 0:01:30.7]} 36... h4 {[%clk 0:02:43.2]} 37. Ra1
{[%clk 0:01:22.4]} 37... Rg3+ {[%clk 0:02:37.1]} 38. Kf2 {[%clk 0:01:15.8]}
38... Rxd3 {[%clk 0:02:32.9]} 39. Ba3 {[%clk 0:00:56.3]} 39... Ra7 {[%clk
0:02:22.7]} 40. Kg2 {[%clk 0:00:32.6]} 40... Rdxa3 {[%clk 0:02:17.1]} 41. Rxa3
{[%clk 0:00:26.6]} 41... Rxa3 {[%clk 0:02:17]} 42. Kh2 {[%clk 0:00:24.5]} 42...
Kf7 {[%clk 0:02:14.4]} 43. Kg2 {[%clk 0:00:22.5]} 43... Ke6 {[%clk 0:02:13.1]}
44. Kf2 {[%clk 0:00:20.8]} 44... Rg3 {[%clk 0:02:08.9]} 45. Kf1 {[%clk
0:00:17.5]} 45... Rg6 {[%clk 0:02:08]} 46. Kf2 {[%clk 0:00:16]} 46... h3 {[%clk
0:02:07.6]} 47. Kf1 {[%clk 0:00:13.4]} 47... h2 {[%clk 0:02:07.1]} 0-1

[Event "Live Chess"]
[Site "Chess.com"]
[Date "2023.05.21"]
[Round "-"]
[White "KeithArkell"]
[Black "HoarseyHorsey"]
[Result "1-0"]
[WhiteElo "2508"]
[BlackElo "1443"]
[TimeControl "300"]
[EndTime "2:14:27 PDT"]
[Termination "KeithArkell won by resignation"]

1. d4 {[%clk 0:04:58.4]} 1... Nf6 {[%clk 0:04:58.4]} 2. Nf3 {[%clk 0:04:57.4]}
2... d5 {[%clk 0:04:57.8]} 3. c4 {[%clk 0:04:55.6]} 3... e6 {[%clk 0:04:56.8]}
4. cxd5 {[%clk 0:04:54.6]} 4... exd5 {[%clk 0:04:55.9]} 5. Nc3 {[%clk
0:04:53.8]} 5... Bg4 {[%clk 0:04:54.7]} 6. Ne5 {[%clk 0:04:52.1]} 6... Bh5
{[%clk 0:04:53]} 7. Bg5 {[%clk 0:04:51]} 7... c6 {[%clk 0:04:52.3]} 8. Qb3
{[%clk 0:04:47.7]} 8... Qc7 {[%clk 0:04:45.8]} 9. Bxf6 {[%clk 0:04:43.5]} 9...
gxf6 {[%clk 0:04:45.7]} 10. Nd3 {[%clk 0:04:42.3]} 10... Bd6 {[%clk 0:04:39.2]}
11. e3 {[%clk 0:04:39.8]} 11... f5 {[%clk 0:04:27.5]} 12. Rc1 {[%clk 0:04:35.9]}
12... Nd7 {[%clk 0:04:24]} 13. Nxd5 {[%clk 0:04:33.9]} 13... Qa5+ {[%clk
0:04:17]} 14. Nc3 {[%clk 0:04:32.7]} 14... O-O {[%clk 0:04:11]} 15. Be2 {[%clk
0:04:30.8]} 15... b6 {[%clk 0:04:07.8]} 16. Bxh5 {[%clk 0:04:29.4]} 16... Nf6
{[%clk 0:04:06.1]} 17. Bf3 {[%clk 0:04:27.7]} 17... Ne4 {[%clk 0:04:04.6]} 18.
Bxe4 {[%clk 0:04:18.7]} 18... fxe4 {[%clk 0:04:04.5]} 19. Ne5 {[%clk 0:04:10.9]}
19... Bxe5 {[%clk 0:03:56.8]} 20. dxe5 {[%clk 0:04:09.9]} 20... Rad8 {[%clk
0:03:55]} 21. O-O {[%clk 0:04:08.1]} 21... Rd3 {[%clk 0:03:54]} 22. Qc4 {[%clk
0:04:04.9]} 22... Rfd8 {[%clk 0:03:44.5]} 23. Qxe4 {[%clk 0:04:02.9]} 23... Rd2
{[%clk 0:03:39.8]} 24. Rc2 {[%clk 0:03:46.4]} 24... b5 {[%clk 0:03:37.8]} 25.
Rxd2 {[%clk 0:03:40]} 25... Rxd2 {[%clk 0:03:37.7]} 26. Qxc6 {[%clk 0:03:37.2]}
26... Qd8 {[%clk 0:03:34]} 27. Ne4 {[%clk 0:03:33.7]} 27... Rxb2 {[%clk
0:03:28.3]} 28. Nf6+ {[%clk 0:03:28.1]} 28... Kg7 {[%clk 0:03:27.1]} 29. Nh5+
{[%clk 0:03:26.1]} 29... Kg8 {[%clk 0:03:25.5]} 30. Qh6 {[%clk 0:03:21.9]} 1-0

[Event "Live Chess"]
[Site "Chess.com"]
[Date "2023.05.21"]
[Round "-"]
[White "Bunny55"]
[Black "WombatIn_A_Box"]
[Result "1/2-1/2"]
[WhiteElo "951"]
[BlackElo "540"]
[TimeControl "300"]
[EndTime "2:14:46 PDT"]
[Termination "Game drawn by stalemate"]

1. e4 {[%clk 0:04:54.8]} 1... e5 {[%clk 0:04:59]} 2. Nf3 {[%clk 0:04:53.6]} 2...
Nf6 {[%clk 0:04:57.1]} 3. Nc3 {[%clk 0:04:51.6]} 3... Nc6 {[%clk 0:04:53.8]} 4.
d3 {[%clk 0:04:46.8]} 4... d5 {[%clk 0:04:52.9]} 5. exd5 {[%clk 0:04:44.9]} 5...
Nxd5 {[%clk 0:04:51.3]} 6. Nxd5 {[%clk 0:04:43.6]} 6... Qxd5 {[%clk 0:04:50]} 7.
Be2 {[%clk 0:04:41.9]} 7... Bg4 {[%clk 0:04:42.1]} 8. O-O {[%clk 0:04:39.9]}
8... O-O-O {[%clk 0:04:39.9]} 9. Re1 {[%clk 0:04:38.6]} 9... Bf5 {[%clk
0:04:33.7]} 10. h3 {[%clk 0:04:35.6]} 10... Bc5 {[%clk 0:04:28.8]} 11. Bd2
{[%clk 0:04:22.2]} 11... e4 {[%clk 0:04:27.5]} 12. dxe4 {[%clk 0:04:17.6]} 12...
Bxe4 {[%clk 0:04:24.8]} 13. c4 {[%clk 0:04:01.5]} 13... Qd6 {[%clk 0:04:15.4]}
14. Qc1 {[%clk 0:03:31]} 14... Bxf3 {[%clk 0:04:07.4]} 15. Bxf3 {[%clk
0:03:29.1]} 15... Qd4 {[%clk 0:04:06]} 16. Rf1 {[%clk 0:03:26.5]} 16... g5
{[%clk 0:04:01.6]} 17. Be3 {[%clk 0:03:21.3]} 17... Qe5 {[%clk 0:03:46.7]} 18.
Bxc5 {[%clk 0:03:16.5]} 18... Qxc5 {[%clk 0:03:42.8]} 19. Bxc6 {[%clk
0:03:11.6]} 19... bxc6 {[%clk 0:03:41]} 20. Rd1 {[%clk 0:03:09.5]} 20... Rxd1+
{[%clk 0:03:39.4]} 21. Qxd1 {[%clk 0:03:08.3]} 21... Rd8 {[%clk 0:03:36.2]} 22.
Qe2 {[%clk 0:03:05.4]} 22... f5 {[%clk 0:03:30.1]} 23. Re1 {[%clk 0:03:03.9]}
23... g4 {[%clk 0:03:23.7]} 24. b3 {[%clk 0:03:01.5]} 24... gxh3 {[%clk
0:03:21.7]} 25. Qe6+ {[%clk 0:02:59.7]} 25... Kb7 {[%clk 0:03:12.9]} 26. gxh3
{[%clk 0:02:54.7]} 26... Rd6 {[%clk 0:03:01.9]} 27. Qe3 {[%clk 0:02:52]} 27...
Qa3 {[%clk 0:02:50.5]} 28. Qe2 {[%clk 0:02:40.1]} 28... c5 {[%clk 0:02:43.6]}
29. Qf3+ {[%clk 0:02:35.3]} 29... Kb6 {[%clk 0:02:41]} 30. Qxf5 {[%clk
0:02:21.1]} 30... Rg6+ {[%clk 0:02:38.1]} 31. Kf1 {[%clk 0:02:17.4]} 31... Qxa2
{[%clk 0:02:34.4]} 32. Re6+ {[%clk 0:02:13.5]} 32... Rxe6 {[%clk 0:02:32.1]} 33.
Qxe6+ {[%clk 0:02:12]} 33... Kb7 {[%clk 0:02:26.2]} 34. Qd5+ {[%clk 0:02:08.4]}
34... Kc8 {[%clk 0:02:24.7]} 35. Qg8+ {[%clk 0:01:59]} 35... Kb7 {[%clk
0:02:22.6]} 36. Qd5+ {[%clk 0:01:57.7]} 36... Kb6 {[%clk 0:02:21.4]} 37. Qe6+
{[%clk 0:01:52.8]} 37... Ka5 {[%clk 0:02:16.9]} 38. Qc6 {[%clk 0:01:43.7]} 38...
Qb1+ {[%clk 0:02:13.8]} 39. Kg2 {[%clk 0:01:41.9]} 39... Qxb3 {[%clk 0:02:10.1]}
40. Qxc7+ {[%clk 0:01:39.3]} 40... Kb4 {[%clk 0:02:08.3]} 41. Qb7+ {[%clk
0:01:36.5]} 41... Kxc4 {[%clk 0:02:03.9]} 42. Qf7+ {[%clk 0:01:34.5]} 42... Kb4
{[%clk 0:02:00.5]} 43. Qb7+ {[%clk 0:01:32.3]} 43... Ka3 {[%clk 0:01:56.1]} 44.
Qa6+ {[%clk 0:01:28.2]} 44... Qa4 {[%clk 0:01:54.2]} 45. Qd3+ {[%clk 0:01:16.6]}
45... Kb4 {[%clk 0:01:47.7]} 46. Qxh7 {[%clk 0:01:06.5]} 46... Qc6+ {[%clk
0:01:43.8]} 47. Kh2 {[%clk 0:00:58]} 47... Qd6+ {[%clk 0:01:40.2]} 48. Kg1
{[%clk 0:00:55.9]} 48... Qd1+ {[%clk 0:01:36.6]} 49. Kg2 {[%clk 0:00:53.3]}
49... Qd5+ {[%clk 0:01:32.9]} 50. Kg1 {[%clk 0:00:49.7]} 50... Qg5+ {[%clk
0:01:30.1]} 51. Kf1 {[%clk 0:00:47.6]} 51... Qc1+ {[%clk 0:01:26.9]} 52. Kg2
{[%clk 0:00:44.8]} 52... Qg5+ {[%clk 0:01:24.1]} 53. Kf1 {[%clk 0:00:42.5]}
53... a5 {[%clk 0:01:14.5]} 54. Qe4+ {[%clk 0:00:40.2]} 54... c4 {[%clk
0:01:12.6]} 55. Qb7+ {[%clk 0:00:35.1]} 55... Qb5 {[%clk 0:01:05.3]} 56. Qe7+
{[%clk 0:00:30.6]} 56... Ka4 {[%clk 0:01:02.4]} 57. Qe2 {[%clk 0:00:26.2]} 57...
c3 {[%clk 0:01:01.3]} 58. Qxb5+ {[%clk 0:00:22.4]} 58... Kxb5 {[%clk 0:00:59.5]}
59. Ke1 {[%clk 0:00:21]} 59... Kb4 {[%clk 0:00:58.1]} 60. Kd1 {[%clk 0:00:19.3]}
60... Kb3 {[%clk 0:00:57.4]} 61. h4 {[%clk 0:00:17.6]} 61... c2+ {[%clk
0:00:56.8]} 62. Kc1 {[%clk 0:00:15.4]} 62... Kc3 {[%clk 0:00:55]} 63. h5 {[%clk
0:00:14.7]} 63... a4 {[%clk 0:00:54.3]} 64. h6 {[%clk 0:00:13.8]} 64... a3
{[%clk 0:00:53.8]} 65. h7 {[%clk 0:00:12.9]} 65... a2 {[%clk 0:00:53.1]} 66.
h8=Q+ {[%clk 0:00:12.6]} 66... Kb3 {[%clk 0:00:50.5]} 67. Qd4 {[%clk 0:00:07]}
67... Ka3 {[%clk 0:00:33.6]} 68. Qb2+ {[%clk 0:00:05.8]} 68... Ka4 {[%clk
0:00:29.4]} 69. Qxa2+ {[%clk 0:00:05.3]} 69... Kb4 {[%clk 0:00:28]} 70. Qxc2
{[%clk 0:00:05.2]} 70... Kb5 {[%clk 0:00:26.6]} 71. f3 {[%clk 0:00:05]} 71...
Kb6 {[%clk 0:00:25.5]} 72. Qc3 {[%clk 0:00:04.9]} 72... Kb7 {[%clk 0:00:24.8]}
73. Qc4 {[%clk 0:00:04.5]} 73... Ka7 {[%clk 0:00:23.9]} 74. Qc5+ {[%clk
0:00:04.4]} 74... Ka8 {[%clk 0:00:23.3]} 75. Qb6 {[%clk 0:00:03.2]} 1/2-1/2

[Event "Live Chess"]
[Site "Chess.com"]
[Date "2023.05.21"]
[Round "-"]
[White "Duke_of_Bebington"]
[Black "EdenHazard8"]
[Result "0-1"]
[WhiteElo "1587"]
[BlackElo "1975"]
[TimeControl "300"]
[EndTime "2:14:51 PDT"]
[Termination "EdenHazard8 won by resignation"]

1. e4 {[%clk 0:04:58.4]} 1... c6 {[%clk 0:04:56.1]} 2. d4 {[%clk 0:04:56.6]}
2... d5 {[%clk 0:04:56]} 3. Nc3 {[%clk 0:04:55.5]} 3... dxe4 {[%clk 0:04:54.5]}
4. Nxe4 {[%clk 0:04:55.4]} 4... Nf6 {[%clk 0:04:54.1]} 5. Nxf6+ {[%clk
0:04:54.1]} 5... exf6 {[%clk 0:04:54]} 6. Nf3 {[%clk 0:04:48.4]} 6... Bd6 {[%clk
0:04:53.1]} 7. Be2 {[%clk 0:04:45.4]} 7... O-O {[%clk 0:04:53]} 8. Be3 {[%clk
0:04:43]} 8... Re8 {[%clk 0:04:51.2]} 9. O-O {[%clk 0:04:37.9]} 9... Nd7 {[%clk
0:04:47.8]} 10. Re1 {[%clk 0:04:30.9]} 10... Nf8 {[%clk 0:04:38.3]} 11. h4
{[%clk 0:04:27.1]} 11... Ng6 {[%clk 0:04:30.7]} 12. h5 {[%clk 0:04:21.8]} 12...
Nf4 {[%clk 0:04:29]} 13. Nh2 {[%clk 0:04:11.3]} 13... Nxe2+ {[%clk 0:04:26.5]}
14. Qxe2 {[%clk 0:04:08.2]} 14... Be6 {[%clk 0:04:23.9]} 15. h6 {[%clk
0:04:03.4]} 15... g6 {[%clk 0:04:22]} 16. Qf3 {[%clk 0:03:55.4]} 16... Bd5
{[%clk 0:04:16.8]} 17. Qd1 {[%clk 0:03:50.6]} 17... Bc7 {[%clk 0:04:13.7]} 18.
Rc1 {[%clk 0:03:34.3]} 18... Qd6 {[%clk 0:04:09.4]} 19. g3 {[%clk 0:03:30.4]}
19... Qd7 {[%clk 0:04:04.9]} 20. Qg4 {[%clk 0:03:24.1]} 20... Be6 {[%clk
0:03:58.1]} 21. Qf3 {[%clk 0:03:20.9]} 21... Bd5 {[%clk 0:03:56.9]} 22. Qg4
{[%clk 0:03:13.6]} 22... f5 {[%clk 0:03:53.1]} 23. Qh4 {[%clk 0:03:04.1]} 23...
Bd8 {[%clk 0:03:49.8]} 24. Bg5 {[%clk 0:02:58.4]} 24... Bxg5 {[%clk 0:03:46.4]}
25. Qxg5 {[%clk 0:02:56.9]} 25... Re6 {[%clk 0:03:43.9]} 26. Re3 {[%clk
0:02:45.3]} 26... Rae8 {[%clk 0:03:40.9]} 27. Rce1 {[%clk 0:02:43.6]} 27... f6
{[%clk 0:03:35.5]} 28. Qh4 {[%clk 0:02:40.4]} 28... Rxe3 {[%clk 0:03:32.7]} 29.
Rxe3 {[%clk 0:02:38.9]} 29... Rxe3 {[%clk 0:03:31.6]} 30. fxe3 {[%clk 0:02:38]}
30... Kf7 {[%clk 0:03:28.5]} 31. Qf4 {[%clk 0:02:31.2]} 31... Be4 {[%clk
0:03:26.7]} 32. c3 {[%clk 0:02:29.2]} 32... Qd8 {[%clk 0:02:55.2]} 33. Nf3
{[%clk 0:02:23.9]} 33... g5 {[%clk 0:02:50.5]} 34. Nxg5+ {[%clk 0:02:22.3]}
34... fxg5 {[%clk 0:02:49]} 35. Qxg5 {[%clk 0:02:21.9]} 35... Qxg5 {[%clk
0:02:47.6]} 0-1

[Event "Live Chess"]
[Site "Chess.com"]
[Date "2023.05.21"]
[Round "-"]
[White "Biranidun"]
[Black "defenderalist"]
[Result "1-0"]
[WhiteElo "2551"]
[BlackElo "1639"]
[TimeControl "300"]
[EndTime "2:14:53 PDT"]
[Termination "Biranidun won by resignation"]

1. e4 {[%clk 0:04:59.2]} 1... e5 {[%clk 0:04:56.5]} 2. Nf3 {[%clk 0:04:58.3]}
2... Nc6 {[%clk 0:04:56]} 3. Bc4 {[%clk 0:04:57.6]} 3... Bc5 {[%clk 0:04:55.1]}
4. c3 {[%clk 0:04:56.5]} 4... Nf6 {[%clk 0:04:52.9]} 5. d4 {[%clk 0:04:55.1]}
5... exd4 {[%clk 0:04:52.1]} 6. b4 {[%clk 0:04:54.5]} 6... Bb6 {[%clk
0:04:44.1]} 7. e5 {[%clk 0:04:53.6]} 7... d5 {[%clk 0:04:30.4]} 8. exf6 {[%clk
0:04:48.9]} 8... dxc4 {[%clk 0:04:29.5]} 9. Qe2+ {[%clk 0:04:48.3]} 9... Be6
{[%clk 0:04:27.1]} 10. b5 {[%clk 0:04:47]} 10... Nb8 {[%clk 0:04:16.2]} 11. fxg7
{[%clk 0:04:41.2]} 11... Rg8 {[%clk 0:04:15.1]} 12. Nxd4 {[%clk 0:04:40.3]}
12... Bxd4 {[%clk 0:04:09.6]} 13. cxd4 {[%clk 0:04:40.2]} 13... Qxd4 {[%clk
0:04:08.6]} 14. Bb2 {[%clk 0:04:37.8]} 14... Qg4 {[%clk 0:03:53.9]} 15. Qxg4
{[%clk 0:04:35.8]} 15... Bxg4 {[%clk 0:03:52.7]} 16. Nd2 {[%clk 0:04:35.7]}
16... Nd7 {[%clk 0:03:50]} 17. Nxc4 {[%clk 0:04:34.1]} 17... f6 {[%clk
0:03:40.7]} 18. O-O {[%clk 0:04:28.8]} 18... Kf7 {[%clk 0:03:39.1]} 19. Rfe1
{[%clk 0:04:23.3]} 19... Rxg7 {[%clk 0:03:37.1]} 20. Ne3 {[%clk 0:04:22.4]}
20... Bf3 {[%clk 0:03:30.7]} 21. Kf1 {[%clk 0:04:21.3]} 21... Bh5 {[%clk
0:03:23.5]} 22. Rac1 {[%clk 0:04:18.8]} 22... Ne5 {[%clk 0:03:21.9]} 23. Rxc7+
{[%clk 0:04:17.2]} 23... Ke6 {[%clk 0:03:19.3]} 24. Rxg7 {[%clk 0:04:16.4]} 1-0

[Event "Live Chess"]
[Site "Chess.com"]
[Date "2023.05.21"]
[Round "-"]
[White "domrobson"]
[Black "Woodpusher500"]
[Result "0-1"]
[WhiteElo "1723"]
[BlackElo "1089"]
[TimeControl "300"]
[EndTime "2:15:01 PDT"]
[Termination "Woodpusher500 won by resignation"]

1. d4 {[%clk 0:04:59.3]} 1... c5 {[%clk 0:04:58.5]} 2. d5 {[%clk 0:04:58.2]}
2... Nf6 {[%clk 0:04:55.9]} 3. c4 {[%clk 0:04:57.4]} 3... b5 {[%clk 0:04:42.5]}
4. Qc2 {[%clk 0:04:53.8]} 4... e6 {[%clk 0:04:28.9]} 5. e4 {[%clk 0:04:47.8]}
5... exd5 {[%clk 0:04:20.6]} 6. exd5 {[%clk 0:04:43]} 6... Qe7+ {[%clk
0:04:16.1]} 7. Be3 {[%clk 0:04:40.2]} 7... d6 {[%clk 0:04:09.8]} 8. Be2 {[%clk
0:04:37.5]} 8... Ba6 {[%clk 0:04:00.4]} 9. cxb5 {[%clk 0:04:33.9]} 9... Bb7
{[%clk 0:03:55.2]} 10. Nc3 {[%clk 0:04:24.8]} 10... Nxd5 {[%clk 0:03:49.6]} 11.
Nxd5 {[%clk 0:04:23.7]} 11... Bxd5 {[%clk 0:03:48]} 12. Nf3 {[%clk 0:04:20.1]}
12... g6 {[%clk 0:03:44.8]} 13. O-O {[%clk 0:04:19]} 13... Bg7 {[%clk
0:03:43.5]} 14. Rfd1 {[%clk 0:04:17.8]} 14... Bb7 {[%clk 0:03:35.8]} 15. Bf4
{[%clk 0:04:09.5]} 15... Nd7 {[%clk 0:03:04.9]} 16. Bxd6 {[%clk 0:04:07.5]}
16... Qe6 {[%clk 0:03:02.6]} 17. Bc4 {[%clk 0:04:04.2]} 17... Qg4 {[%clk
0:02:57.5]} 18. Re1+ {[%clk 0:04:00.2]} 18... Kd8 {[%clk 0:02:52.5]} 19. Bxf7
{[%clk 0:03:48.4]} 19... Bxf3 {[%clk 0:02:44.9]} 20. Be7+ {[%clk 0:03:44.9]}
20... Kc7 {[%clk 0:02:37.3]} 21. g3 {[%clk 0:03:35.1]} 21... Qh3 {[%clk
0:02:35.1]} 22. Bd6+ {[%clk 0:03:27.2]} 22... Kd8 {[%clk 0:02:22.6]} 23. Be7+
{[%clk 0:03:17.1]} 23... Kc7 {[%clk 0:02:17.5]} 24. Bd6+ {[%clk 0:03:15.8]}
24... Kc8 {[%clk 0:01:40.3]} 0-1